bitfinex/quotes_BTCUSD_20250602
["timestamp","ask_amount","ask_price","bid_price","bid_amount"]
[1748880806335,0.13480412,104290.0,104280.0,0.26313108]
[1748880806584,0.03304696,104290.0,104280.0,0.2721216]
[1748880806806,0.03304696,104290.0,104280.0,0.26313108]
[1748880807025,0.05095793,104290.0,104280.0,0.27212115]
[1748880807232,0.05095793,104290.0,104280.0,0.26313108]
[1748880807233,0.06054598,104290.0,104280.0,0.26313108]
[1748880807453,0.05222286,104290.0,104280.0,0.26313108]
[1748880807892,0.1326502,104290.0,104280.0,0.26313108]
[1748880808105,0.1326502,104290.0,104280.0,0.24593218]
[1748880808324,0.13936662,104290.0,104280.0,0.23634357]
[1748880808534,0.14223875,104290.0,104280.0,0.24653108]
[1748880808976,0.16686558,104290.0,104280.0,0.24653108]
[1748880809207,0.1393666,104290.0,104280.0,0.24653108]
[1748880809423,0.13936669,104290.0,104280.0,0.24653108]
[1748880809633,0.11347347,104290.0,104280.0,0.24653108]
[1748880809838,0.04263477,104290.0,104280.0,0.24653108]
[1748880810050,0.05222277,104290.0,104280.0,0.24653108]
[1748880810257,0.03304696,104290.0,104280.0,0.27132142]
[1748880810539,0.03304696,104290.0,104280.0,0.26233108]
[1748880810750,0.05095846,104290.0,104280.0,0.26233108]
[1748880810960,0.03304696,104290.0,104280.0,0.30870386]
[1748880811170,0.03304696,104290.0,104280.0,0.26233108]
[1748880811821,0.05095946,104290.0,104280.0,0.27132037]
[1748880812027,0.05095946,104290.0,104280.0,0.26233108]
[1748880812028,0.03304696,104290.0,104280.0,0.26233108]
[1748880812659,0.03304696,104290.0,104280.0,0.27132039]
[1748880812870,0.03304696,104290.0,104280.0,0.26233108]
[1748880813050,0.03304696,104290.0,104280.0,0.27132039]
[1748880813285,0.03304696,104290.0,104280.0,0.26233108]
[1748880814543,0.03304696,104290.0,104280.0,0.2713204]
[1748880814760,0.03304696,104290.0,104280.0,0.26233108]
[1748880815175,0.03304696,104290.0,104280.0,0.27132073]
[1748880815386,0.03304696,104290.0,104280.0,0.27132076]
[1748880815594,0.03304696,104290.0,104280.0,0.26233108]
[1748880815806,0.03304696,104290.0,104280.0,0.27132071]
[1748880816009,0.05097641,104290.0,104280.0,0.27132071]
[1748880816435,0.03304696,104290.0,104280.0,0.26233108]
[1748880817085,0.03304696,104290.0,104280.0,0.27132076]
[1748880817298,0.05097636,104290.0,104280.0,0.26233108]
[1748880817503,0.03304696,104290.0,104280.0,0.26233108]
[1748880817922,0.05097684,104290.0,104280.0,0.27132071]
[1748880818343,0.03304696,104290.0,104280.0,0.27132071]
[1748880819121,0.03304696,104290.0,104280.0,0.26233108]
[1748880820085,0.05098822,104290.0,104280.0,0.26233108]
[1748880820330,0.03304696,104290.0,104280.0,0.26233108]
[1748880821226,0.03304696,104290.0,104280.0,0.27132076]
[1748880821630,0.03304696,104290.0,104280.0,0.26233108]
[1748880822387,0.06057768,104290.0,104280.0,0.26233108]
[1748880822595,0.03304696,104290.0,104280.0,0.26233108]
[1748880824277,0.06893361,104290.0,104280.0,0.26233108]
[1748880824479,0.06893341,104290.0,104280.0,0.27132076]
[1748880824685,0.05099028,104290.0,104280.0,0.26233108]
[1748880825101,0.07975483,104290.0,104280.0,0.26233108]
[1748880825306,0.07975474,104290.0,104280.0,0.26233108]
[1748880825517,0.09769811,104290.0,104280.0,0.26233108]
[1748880825754,0.0893431,104290.0,104280.0,0.26233108]
[1748880825964,0.07975464,104290.0,104280.0,0.26233108]
[1748880826179,0.09483897,104290.0,104280.0,0.26233108]
[1748880826399,0.07689517,104290.0,104280.0,0.27132086]
[1748880826607,0.104427,104290.0,104280.0,0.26233108]
[1748880826815,0.08648335,104290.0,104280.0,0.27132085]
[1748880827022,0.10442707,104290.0,104280.0,0.27132086]
[1748880827248,0.10442696,104290.0,104280.0,0.26233108]
[1748880827453,0.07975446,104290.0,104280.0,0.26233108]
[1748880827869,0.13862258,104290.0,104280.0,0.2713209]
[1748880828110,0.10436207,104290.0,104280.0,0.26233108]
[1748880828330,0.08648222,104290.0,104280.0,0.26233108]
[1748880828548,0.09607047,104290.0,104280.0,0.26233108]
[1748880828767,0.09607025,104290.0,104280.0,0.26233108]
[1748880828988,0.08934283,104290.0,104280.0,0.26233108]
[1748880829635,0.07975446,104290.0,104280.0,0.26233108]
[1748880829846,0.1072823,104290.0,104280.0,0.26233108]
[1748880830058,0.08934283,104290.0,104280.0,0.26233108]
[1748880830483,0.10728239,104290.0,104280.0,0.27132114]
[1748880830687,0.08934283,104290.0,104280.0,0.26233108]
[1748880830897,0.08934283,104290.0,104280.0,0.27132114]
[1748880831551,0.08934273,104290.0,104280.0,0.26233108]
[1748880831765,0.07851961,104290.0,104280.0,0.26233108]
[1748880831986,0.05099028,104290.0,104280.0,0.26233108]
[1748880832196,0.07851987,104290.0,104280.0,0.26233108]
[1748880832418,0.05099028,104290.0,104280.0,0.26233108]
[1748880832843,0.05099028,104290.0,104280.0,0.271321]
[1748880833045,0.05771838,104290.0,104280.0,0.271321]
[1748880833311,0.05099028,104290.0,104280.0,0.26233108]
[1748880834797,0.06893066,104290.0,104280.0,0.271321]
[1748880835047,0.05771791,104290.0,104280.0,0.26233108]
[1748880835261,0.05099028,104290.0,104280.0,0.27132099]
[1748880835866,0.06057809,104290.0,104280.0,0.26233108]
[1748880836644,0.11283525,104290.0,104280.0,0.26233108]
[1748880836854,0.14036418,104290.0,104280.0,0.27132104]
[1748880837071,0.12118733,104290.0,104280.0,0.26233108]
[1748880837324,0.1211879,104290.0,104280.0,0.26233108]
[1748880837454,0.12791578,104290.0,104280.0,0.27132106]
[1748880837823,0.10324688,104290.0,104280.0,0.26233108]
[1748880837972,0.12118802,104290.0,104280.0,0.26233108]
[1748880838173,0.10324688,104290.0,104280.0,0.27132105]
[1748880838395,0.10324688,104290.0,104280.0,0.26233108]
[1748880838582,0.10997482,104290.0,104280.0,0.26233108]
[1748880838787,0.10324688,104290.0,104280.0,0.27132105]
[1748880839129,0.06730599,104290.0,104280.0,0.26233108]
[1748880839344,0.0852475,104290.0,104280.0,0.26233108]
[1748880839526,0.08524777,104290.0,104280.0,0.26233108]
[1748880839677,0.06730599,104290.0,104280.0,0.26233108]
[1748880839888,0.09483619,104290.0,104280.0,0.26233108]
[1748880840098,0.09483613,104290.0,104280.0,0.26233108]
[1748880840299,0.06730589,104290.0,104280.0,0.26233108]
[1748880840659,0.08237846,104290.0,104280.0,0.26233108]
[1748880840883,0.08237846,104290.0,104280.0,0.35818538]
[1748880840884,0.04760608,104290.0,104280.0,0.35818538]
[1748880841088,0.04760611,104290.0,104280.0,0.95407777]
[1748880841296,0.02967112,104290.0,104280.0,0.45285534]
[1748880841503,0.04760746,104290.0,104280.0,0.35818538]
[1748880841726,0.02967112,104290.0,104280.0,0.36717032]
[1748880842084,0.02967112,104290.0,104280.0,0.35818538]
[1748880842291,0.04760704,104290.0,104280.0,0.35818538]
[1748880842499,0.02967112,104290.0,104280.0,0.35818538]
[1748880842705,0.02467112,104290.0,104280.0,0.35818538]
[1748880842905,0.02567112,104290.0,104280.0,0.35818538]
[1748880843106,0.02667112,104290.0,104280.0,0.35818538]
[1748880843297,0.02467112,104290.0,104280.0,0.35818538]
[1748880843667,0.02667112,104290.0,104280.0,0.36717058]
[1748880843875,0.02667112,104290.0,104280.0,0.35818538]
[1748880845312,0.02667112,104290.0,104280.0,0.36717057]
[1748880845723,0.02667112,104290.0,104280.0,0.36717084]
[1748880845929,0.02667112,104290.0,104280.0,0.35818538]
[1748880846156,0.04460637,104290.0,104280.0,0.36717092]
[1748880846651,0.02667112,104290.0,104280.0,0.35818538]
[1748880847053,0.02667112,104290.0,104280.0,0.36717091]
[1748880847257,0.0625414,104290.0,104280.0,0.37615644]
[1748880847456,0.04460626,104290.0,104280.0,0.37615644]
[1748880847656,0.04460626,104290.0,104280.0,0.36717091]
[1748880848262,0.04460626,104290.0,104280.0,0.37615645]
[1748880848511,0.04460626,104290.0,104280.0,0.36717091]
[1748880848715,0.0625421,104290.0,104280.0,0.36717091]
[1748880848938,0.04460626,104290.0,104280.0,0.3761564]
[1748880849140,0.07407901,104290.0,104280.0,0.36717091]
[1748880849296,0.07407901,104290.0,104280.0,0.3761564]
[1748880849485,0.07407901,104290.0,104280.0,0.36717091]
[1748880849691,0.09201482,104290.0,104280.0,0.36717091]
[1748880849896,0.07407901,104290.0,104280.0,0.36717091]
[1748880850098,0.09201474,104290.0,104280.0,0.36717091]
[1748880850488,0.07407901,104290.0,104280.0,0.36717091]
[1748880850706,0.07407901,104290.0,104280.0,0.37615642]
[1748880850915,0.07407901,104290.0,104280.0,0.37615639]
[1748880851118,0.07407901,104290.0,104280.0,0.36717091]
[1748880851237,0.07407901,104290.0,104280.0,0.3761564]
[1748880851465,0.07407901,104290.0,104280.0,0.36717091]
[1748880851945,0.0920117,104290.0,104280.0,0.36717091]
[1748880852156,0.07407901,104290.0,104280.0,0.37615641]
[1748880852371,0.09201177,104290.0,104280.0,0.37615641]
[1748880852582,0.09201177,104290.0,104280.0,0.36717091]
[1748880852783,0.07407901,104290.0,104280.0,0.37615642]
[1748880852932,0.07407901,104290.0,104280.0,0.36717091]
[1748880853626,0.09201172,104290.0,104280.0,0.36717091]
[1748880853833,0.09201172,104290.0,104280.0,0.46065091]
[1748880854047,0.07407901,104290.0,104280.0,0.46065091]
[1748880854260,0.09201167,104290.0,104280.0,0.46065091]
[1748880854470,0.07407901,104290.0,104280.0,0.46065091]
[1748880854683,0.09201171,104290.0,104280.0,0.46065091]
[1748880854904,0.07407901,104290.0,104280.0,0.46065091]
[1748880856690,0.09202209,104290.0,104280.0,0.46065091]
[1748880856908,0.07407901,104290.0,104280.0,0.46065091]
[1748880857995,0.09202214,104290.0,104280.0,0.46065091]
[1748880858195,0.07407901,104290.0,104280.0,0.46065091]
[1748880858396,0.09202329,104290.0,104280.0,0.46065091]
[1748880858612,0.09202329,104290.0,104280.0,0.37616016]
[1748880859081,0.07407901,104290.0,104280.0,0.37616016]
[1748880859309,0.07407901,104290.0,104280.0,0.36717091]
[1748880859310,0.09202614,104290.0,104280.0,0.36717091]
[1748880859514,0.07407901,104290.0,104280.0,0.37616015]
[1748880859717,0.07407901,104290.0,104280.0,0.36717091]
[1748880860775,0.09202635,104290.0,104280.0,0.36717091]
[1748880860977,0.07407901,104290.0,104280.0,0.36717091]
[1748880861317,0.07407901,104290.0,104280.0,0.37616015]
[1748880861584,0.09202672,104290.0,104280.0,0.36717091]
[1748880861777,0.07407901,104290.0,104280.0,0.36717091]
[1748880861930,0.07407901,104290.0,104280.0,0.37616015]
[1748880862140,0.06255396,104290.0,104280.0,0.46867137]
[1748880862342,0.04460626,104290.0,104280.0,0.37616015]
[1748880862656,0.04460626,104290.0,104280.0,0.3761414]
[1748880862866,0.04460626,104290.0,104280.0,0.37614139]
[1748880863044,0.04460626,104290.0,104280.0,0.36717091]
[1748880863712,0.04460626,104290.0,104280.0,0.37614134]
[1748880863956,0.04460626,104290.0,104280.0,0.36717091]
[1748880864757,0.04460626,104290.0,104280.0,0.37614136]
[1748880864985,0.04460626,104290.0,104280.0,0.36717091]
[1748880865660,0.04460626,104290.0,104280.0,0.37614134]
[1748880865882,0.04460626,104290.0,104280.0,0.36717091]
[1748880866131,0.04460626,104290.0,104280.0,0.37614134]
[1748880866348,0.04460626,104290.0,104280.0,0.36717091]
[1748880868118,0.04460626,104290.0,104280.0,0.46065091]
[1748880869411,0.04460626,104290.0,104280.0,0.46962133]
[1748880869607,0.04460626,104290.0,104280.0,0.46065091]
[1748880869814,0.04460626,104290.0,104280.0,0.55316213]
[1748880870027,0.04460626,104290.0,104280.0,0.46065091]
[1748880870238,0.04460626,104290.0,104280.0,0.46962133]
[1748880870466,0.04460626,104290.0,104280.0,0.46065091]
[1748880870869,0.06255285,104290.0,104280.0,0.46065091]
[1748880871075,0.04460626,104290.0,104280.0,0.46065091]
[1748880871279,0.04460626,104290.0,104280.0,0.46963991]
[1748880871484,0.0625528,104290.0,104280.0,0.46963991]
[1748880871712,0.04460626,104290.0,104280.0,0.46065091]
[1748880872413,0.04460626,104290.0,104280.0,0.46963986]
[1748880872628,0.04460626,104290.0,104280.0,0.46065091]
[1748880873104,0.04460626,104290.0,104280.0,0.37615986]
[1748880873319,0.04460626,104290.0,104280.0,0.36717091]
[1748880873533,0.06255268,104290.0,104280.0,0.37615986]
[1748880873747,0.04460626,104290.0,104280.0,0.37615986]
[1748880873941,0.04460626,104290.0,104280.0,0.37615982]
[1748880874588,0.0625554,104290.0,104280.0,0.38514871]
[1748880875021,0.06255535,104290.0,104280.0,0.37615982]
[1748880875228,0.04460626,104290.0,104280.0,0.37615982]
[1748880875430,0.04460626,104290.0,104280.0,0.38514863]
[1748880875637,0.04460626,104290.0,104280.0,0.37615982]
[1748880877860,0.06255527,104290.0,104280.0,0.38514857]
[1748880878081,0.06255511,104290.0,104280.0,0.3851486]
[1748880878320,0.04460626,104290.0,104280.0,0.3851486]
[1748880878538,0.04460626,104290.0,104280.0,0.37615982]
[1748880878880,0.04460626,104290.0,104280.0,0.38514447]
[1748880878988,0.04460626,104290.0,104280.0,0.37615982]
[1748880879210,0.06254669,104290.0,104280.0,0.37615982]
[1748880879429,0.04460626,104290.0,104280.0,0.37615982]
[1748880879671,0.04460626,104290.0,104280.0,0.38514463]
[1748880879672,0.06254659,104290.0,104280.0,0.38514463]
[1748880879907,0.04460626,104290.0,104280.0,0.38514463]
[1748880880141,0.04460626,104290.0,104280.0,0.37615982]
[1748880880381,0.06020626,104290.0,104280.0,0.34445982]
[1748880880619,0.17195786,104300.0,104290.0,0.2013614]
[1748880880872,0.18154531,104300.0,104290.0,0.22952327]
[1748880881130,0.18154531,104300.0,104290.0,0.21034681]
[1748880881382,0.18154531,104300.0,104290.0,0.21095013]
[1748880881863,0.18354531,104300.0,104290.0,0.21095013]
[1748880882305,0.19313303,104300.0,104290.0,0.22053859]
[1748880882769,0.19313303,104300.0,104290.0,0.00898535]
[1748880882983,0.21757806,104300.0,104290.0,0.21034694]
[1748880883214,0.19513303,104300.0,104290.0,0.21034708]
[1748880883439,0.18554558,104300.0,104280.0,0.23901596]
[1748880883664,0.20174558,104300.0,104290.0,0.19177294]
[1748880883873,0.23514355,104300.0,104290.0,0.20075849]
[1748880884079,0.28121982,104300.0,104290.0,0.20136158]
[1748880884282,0.27721982,104300.0,104290.0,0.21034708]
[1748880884492,0.27721982,104300.0,104290.0,0.21034705]
[1748880884720,0.27721982,104300.0,104290.0,0.21034711]
[1748880884939,0.27721982,104300.0,104290.0,0.20136158]
[1748880885568,0.27921982,104300.0,104290.0,0.20136158]
[1748880885788,0.21094958,104290.0,104280.0,0.21024902]
[1748880886019,0.23454977,104290.0,104280.0,0.21024902]
[1748880886239,0.31371961,104290.0,104280.0,0.21983858]
[1748880886501,0.25366021,104290.0,104280.0,0.21983858]
[1748880886707,0.24407175,104290.0,104280.0,0.01845769]
[1748880886913,0.24407175,104290.0,104280.0,0.21024902]
[1748880887130,0.24507175,104290.0,104280.0,0.22942787]
[1748880887757,0.23677175,104290.0,104280.0,0.24800333]
[1748880887963,0.23677175,104290.0,104280.0,0.23901697]
[1748880888172,0.23677175,104290.0,104280.0,0.22942787]
[1748880888596,0.23677175,104290.0,104280.0,0.23841423]
[1748880888813,0.23677175,104290.0,104280.0,0.22942787]
[1748880889032,0.31331751,104290.0,104280.0,0.01845769]
[1748880889230,0.32161751,104290.0,104280.0,0.01845769]
[1748880889437,0.2596126,104290.0,104280.0,0.01845769]
[1748880889645,0.2596126,104290.0,104280.0,0.02744431]
[1748880889867,0.2513126,104290.0,104280.0,0.01845769]
[1748880890315,0.2513126,104290.0,104280.0,0.02744431]
[1748880890532,0.2513126,104290.0,104280.0,0.21024902]
[1748880890748,0.32586105,104290.0,104280.0,0.21983858]
[1748880890975,0.32586105,104290.0,104280.0,0.22942805]
[1748880891650,0.31756105,104290.0,104280.0,0.22942805]
[1748880891859,0.31756105,104290.0,104280.0,0.21983858]
[1748880892497,0.31756105,104290.0,104280.0,0.22882947]
[1748880892717,0.31756105,104290.0,104280.0,0.21983858]
[1748880893147,0.41007227,104290.0,104280.0,0.01845769]
[1748880893362,0.51422657,104290.0,104280.0,0.01845769]
[1748880894046,0.02876988,104270.0,104260.0,0.25551276]
[1748880894319,0.03836009,104270.0,104260.0,0.23638008]
[1748880894525,0.03836009,104270.0,104260.0,0.25556187]
[1748880894734,0.04671376,104270.0,104260.0,0.25556187]
[1748880894952,0.00958965,104270.0,104260.0,0.27086187]
[1748880895181,0.08103101,104290.0,104280.0,0.21097018]
[1748880895407,0.09490369,104290.0,104280.0,0.24634829]
[1748880895625,0.0900649,104290.0,104280.0,0.26134829]
[1748880895843,0.02869881,104290.0,104280.0,0.26134829]
[1748880896056,0.04664713,104290.0,104280.0,0.28700101]
[1748880896268,0.5520594,104300.0,104290.0,0.25223776]
[1748880896474,0.26478921,104300.0,104290.0,0.25223794]
[1748880896691,0.08139731,104300.0,104290.0,0.26182594]
[1748880896896,0.08139738,104300.0,104290.0,0.26182594]
[1748880897112,0.28273956,104300.0,104290.0,0.21696149]
[1748880897326,0.25520277,104300.0,104290.0,0.23613832]
[1748880897533,0.07544822,104300.0,104290.0,0.25631459]
[1748880897950,0.26720277,104300.0,104290.0,0.24672659]
[1748880898420,0.28515337,104300.0,104290.0,0.25631477]
[1748880898628,0.28515345,104300.0,104290.0,0.25631477]
[1748880898836,0.26720277,104300.0,104290.0,0.25631431]
[1748880899278,0.28120277,104300.0,104290.0,0.25731431]
[1748880899702,0.28120277,104300.0,104290.0,0.24772622]
[1748880900117,0.29915357,104300.0,104290.0,0.24772622]
[1748880900320,0.29915348,104300.0,104290.0,0.24772622]
[1748880900538,0.27161541,104300.0,104290.0,0.24772622]
[1748880900751,0.28956416,104300.0,104290.0,0.24772622]
[1748880900952,0.27161541,104300.0,104290.0,0.24772622]
[1748880901162,0.06068551,104300.0,104290.0,0.25731431]
[1748880901399,0.05109797,104300.0,104290.0,0.27311385]
[1748880901625,0.06904719,104300.0,104290.0,0.27311385]
[1748880901839,0.026,104300.0,104290.0,0.27311385]
[1748880902978,0.04395149,104300.0,104290.0,0.27311385]
[1748880903188,0.026,104300.0,104290.0,0.76144815]
[1748880903398,0.026,104300.0,104290.0,0.85395937]
[1748880904026,0.014,104300.0,104290.0,0.85295937]
[1748880904232,0.016,104300.0,104290.0,1.6941818]
[1748880904683,0.03395451,104300.0,104290.0,1.7191184]
[1748880904865,0.016,104300.0,104290.0,1.21789597]
[1748880905069,0.06340069,104320.0,104310.0,0.25169548]
[1748880905270,0.05381526,104320.0,104310.0,0.25169548]
[1748880905947,0.04301429,104320.0,104310.0,0.25169548]
[1748880906142,0.04301434,104320.0,104310.0,0.25169548]
[1748880906350,0.04301436,104320.0,104310.0,0.34754978]
[1748880906568,0.02605972,104320.0,104310.0,0.34754978]
[1748880906784,0.0452303,104320.0,104310.0,0.34754978]
[1748880907005,0.03564487,104320.0,104310.0,0.34754978]
[1748880907628,0.05359996,104320.0,104310.0,0.34754978]
[1748880907836,0.03664487,104320.0,104310.0,0.34754978]
[1748880908043,0.05459987,104320.0,104310.0,0.34754978]
[1748880908663,0.03664478,104320.0,104310.0,0.34754978]
[1748880908874,0.05459987,104320.0,104310.0,0.34754978]
[1748880909087,0.04501481,104320.0,104310.0,0.34754978]
[1748880909300,0.02705972,104320.0,104310.0,0.40339597]
[1748880909953,0.04501474,104320.0,104310.0,0.34754978]
[1748880910180,0.04501493,104320.0,104310.0,0.34754978]
[1748880910387,0.02705972,104320.0,104310.0,0.34754978]
[1748880910595,0.04501496,104320.0,104310.0,0.34754978]
[1748880910801,0.02705972,104320.0,104310.0,0.34754978]
[1748880911872,0.04501496,104320.0,104310.0,0.34754978]
[1748880912096,0.02705972,104320.0,104310.0,0.34754978]
[1748880912304,0.03664487,104320.0,104310.0,0.34754978]
[1748880912518,0.03664478,104320.0,104310.0,0.34754978]
[1748880912736,0.04501496,104320.0,104310.0,0.34754978]
[1748880912943,0.03664478,104320.0,104310.0,0.34754978]
[1748880913150,0.03664478,104320.0,104310.0,0.44078978]
[1748880913151,0.02705972,104320.0,104310.0,0.44078978]
[1748880913354,0.04501496,104320.0,104310.0,0.44078978]
[1748880913597,0.02705972,104320.0,104310.0,0.44078978]
[1748880914022,0.04501496,104320.0,104310.0,0.44078978]
[1748880914435,0.02705972,104320.0,104310.0,0.44078978]
[1748880914652,0.04501496,104320.0,104310.0,0.44078978]
[1748880914879,0.02705972,104320.0,104310.0,0.50595997]
[1748880915082,0.02705972,104320.0,104310.0,0.44078978]
[1748880915289,0.01995531,104320.0,104310.0,0.44078978]
[1748880915496,0.04432315,104320.0,104310.0,0.44078978]
[1748880915701,0.002,104320.0,104310.0,0.44078978]
[1748880917180,0.01995569,104320.0,104310.0,0.44078978]
[1748880917451,0.01158524,104320.0,104310.0,0.44078978]
[1748880917652,0.01158515,104320.0,104310.0,0.44078978]
[1748880917870,0.01995545,104320.0,104310.0,0.44078978]
[1748880918076,0.002,104320.0,104310.0,0.44078978]
[1748880918927,0.02629151,104320.0,104310.0,0.44078978]
[1748880919150,0.03587657,104320.0,104310.0,0.44078978]
[1748880919361,0.05504733,104320.0,104310.0,0.44078978]
[1748880919569,0.04546172,104320.0,104310.0,0.44078978]
[1748880919787,0.05504696,104320.0,104310.0,0.44078978]
[1748880919999,0.07300207,104320.0,104310.0,0.44078978]
[1748880920208,0.07300218,104320.0,104310.0,0.44078978]
[1748880920620,0.06463239,104320.0,104310.0,0.44078978]
[1748880920824,0.05504696,104320.0,104310.0,0.44078978]
[1748880921505,0.04546172,104320.0,104310.0,0.44078978]
[1748880922131,0.05504705,104320.0,104310.0,0.44078978]
[1748880922338,0.07300225,104320.0,104310.0,0.44078978]
[1748880922545,0.04546172,104320.0,104310.0,0.44078978]
[1748880922748,0.06341692,104320.0,104310.0,0.44078978]
[1748880922925,0.07300225,104320.0,104310.0,0.44078978]
[1748880923161,0.05504705,104320.0,104310.0,0.44078978]
[1748880923367,0.04546172,104320.0,104310.0,0.44078978]
[1748880924003,0.05504705,104320.0,104310.0,0.44078978]
[1748880924211,0.04546172,104320.0,104310.0,0.44078978]
[1748880924647,0.03587657,104320.0,104310.0,0.44078978]
[1748880925319,0.05383176,104320.0,104310.0,0.44078978]
[1748880925536,0.0442467,104320.0,104310.0,0.44078978]
[1748880925761,0.03587666,104320.0,104310.0,0.44078978]
[1748880925987,0.04424667,104320.0,104310.0,0.43078978]
[1748880926694,0.06220192,104320.0,104310.0,0.44037594]
[1748880927105,0.04424667,104320.0,104310.0,0.44037594]
[1748880927574,0.08015715,104320.0,104310.0,0.44037594]
[1748880927826,0.06220191,104320.0,104310.0,0.44037594]
[1748880928490,0.10891278,104320.0,104310.0,0.44954991]
[1748880928711,0.28267515,104320.0,104310.0,0.12444]
[1748880928945,0.34910997,104320.0,104310.0,0.20132297]
[1748880929150,0.34910944,104320.0,104310.0,0.21090968]
[1748880929361,0.32156944,104320.0,104310.0,0.20132297]
[1748880929567,0.32156944,104320.0,104310.0,0.21090968]
[1748880929782,0.32156944,104320.0,104310.0,0.23008283]
[1748880930000,0.07178697,104320.0,104310.0,0.22049603]
[1748880930266,0.11012877,104320.0,104310.0,0.27076863]
[1748880930471,0.31980291,104320.0,104310.0,0.24598247]
[1748880930703,0.34506289,104320.0,104310.0,0.21722288]
[1748880930908,0.33547737,104320.0,104310.0,0.20132288]
[1748880931113,0.35343185,104320.0,104310.0,0.2109095]
[1748880931331,0.35343185,104320.0,104310.0,0.00918897]
[1748880931332,0.32589167,104320.0,104310.0,0.00918897]
[1748880931541,0.32589167,104320.0,104310.0,0.21090959]
[1748880932572,0.34384612,104320.0,104310.0,0.21090959]
[1748880932749,0.32589167,104320.0,104310.0,0.21090959]
[1748880933165,0.30711437,104320.0,104310.0,0.20090959]
[1748880933370,0.30711437,104320.0,104310.0,0.19132297]
[1748880933572,0.30711437,104320.0,104310.0,0.20090968]
[1748880933796,0.29201437,104320.0,104310.0,0.20090968]
[1748880934469,0.30996882,104320.0,104310.0,0.20090968]
[1748880934675,0.29201437,104320.0,104310.0,0.20090968]
[1748880935084,0.3310026,104320.0,104310.0,0.20090968]
[1748880935613,0.21090913,104310.0,104300.0,0.10914]
[1748880935787,0.27752123,104310.0,104300.0,0.20139055]
[1748880935990,0.29262123,104310.0,104300.0,0.19180292]
[1748880936220,0.31057379,104310.0,104300.0,0.20139064]
[1748880936393,0.27752123,104310.0,104300.0,0.22056545]
[1748880936818,0.27752123,104310.0,104300.0,0.22156545]
[1748880938379,0.27752123,104310.0,104300.0,0.22256545]
[1748880939121,0.27752123,104310.0,104300.0,0.23215271]
[1748880939356,0.27752123,104310.0,104300.0,0.24865271]
[1748880939930,0.08578506,104310.0,104300.0,0.24865271]
[1748880940114,0.10373762,104310.0,104300.0,0.25823979]
[1748880940397,0.10373765,104310.0,104300.0,0.27423979]
[1748880940575,0.08578506,104310.0,104300.0,0.27423979]
[1748880940799,0.01917296,104310.0,104300.0,0.27423979]
[1748880941215,0.23844844,104310.0,104300.0,0.27423979]
[1748880941771,0.22049584,104310.0,104300.0,0.27423979]
[1748880942048,0.01917232,104310.0,104300.0,0.27423979]
[1748880942232,0.04671145,104310.0,104300.0,0.27423979]
[1748880942436,0.02875885,104310.0,104300.0,0.27423979]
[1748880942641,0.01917232,104310.0,104300.0,0.27423979]
[1748880942963,0.03834528,104310.0,104300.0,0.27423979]
[1748880943358,0.23008145,104310.0,104300.0,0.26465271]
[1748880943568,0.28895254,104310.0,104300.0,0.25823988]
[1748880943836,0.08762957,104310.0,104300.0,0.25823924]
[1748880944110,0.10558217,104310.0,104300.0,0.25823924]
[1748880944577,0.07804295,104310.0,104300.0,0.25823924]
[1748880944777,0.32019419,104320.0,104310.0,0.20132288]
[1748880944987,0.26739389,104320.0,104310.0,0.2109095]
[1748880945529,0.27697941,104320.0,104310.0,0.23008247]
[1748880945944,0.27897941,104320.0,104310.0,0.23008247]
[1748880946560,0.05552908,104320.0,104310.0,0.23966881]
[1748880946774,0.05057347,104320.0,104310.0,0.27016826]
[1748880947002,0.04098823,104320.0,104310.0,0.27016826]
[1748880947434,0.002,104320.0,104310.0,0.36602256]
[1748880947849,0.002,104320.0,104310.0,0.45170111]
[1748880948539,0.002,104320.0,104310.0,0.54486111]
[1748880949374,0.002,104320.0,104310.0,0.45918256]
[1748880959190,0.01996097,104320.0,104310.0,0.45918256]
[1748880959379,0.002,104320.0,104310.0,0.45918256]
[1748880962104,0.01996094,104320.0,104310.0,0.45918256]
[1748880962323,0.01158515,104320.0,104310.0,0.36332826]
[1748880962514,0.002,104320.0,104310.0,0.36332826]
[1748880962721,0.01158506,104320.0,104310.0,0.36332826]
[1748880963056,0.002,104320.0,104310.0,0.36332826]
[1748880963804,0.01996085,104320.0,104310.0,0.36088826]
[1748880964002,0.002,104320.0,104310.0,0.36088826]
[1748880965376,0.029546,104320.0,104310.0,0.36088826]
[1748880965585,0.002,104320.0,104310.0,0.36088826]
[1748880966143,0.01996084,104320.0,104310.0,0.36088826]
[1748880966341,0.002,104320.0,104310.0,0.36088826]
[1748880966947,0.01158515,104320.0,104310.0,0.36088826]
[1748880967166,0.01206074,104320.0,104310.0,0.36088826]
[1748880967729,0.03002159,104320.0,104310.0,0.36088826]
[1748880967850,0.03002158,104320.0,104310.0,0.36088826]
[1748880968080,0.002,104320.0,104310.0,0.36088826]
[1748880968735,0.01996103,104320.0,104310.0,0.36088826]
[1748880968948,0.002,104320.0,104310.0,0.36088826]
[1748880969404,0.01996103,104320.0,104310.0,0.36088826]
[1748880969871,0.002,104320.0,104310.0,0.36088826]
[1748880971381,0.01996108,104320.0,104310.0,0.36088826]
[1748880971798,0.002,104320.0,104310.0,0.36088826]
[1748880972221,0.01996107,104320.0,104310.0,0.36088826]
[1748880972425,0.002,104320.0,104310.0,0.36088826]
[1748880972680,0.01996106,104320.0,104310.0,0.36088826]
[1748880972933,0.002,104320.0,104310.0,0.36088826]
[1748880973142,0.01996105,104320.0,104310.0,0.36088826]
[1748880973347,0.002,104320.0,104310.0,0.36088826]
[1748880973575,0.01996106,104320.0,104310.0,0.36088826]
[1748880973784,0.01996107,104320.0,104310.0,0.36088826]
[1748880973991,0.002,104320.0,104310.0,0.36088826]
[1748880974508,0.01996108,104320.0,104310.0,0.36088826]
[1748880974722,0.002,104320.0,104310.0,0.36088826]
[1748880975669,0.01996106,104320.0,104310.0,0.36088826]
[1748880976138,0.002,104320.0,104310.0,0.36088826]
[1748880976592,0.01996105,104320.0,104310.0,0.36088826]
[1748880976831,0.002,104320.0,104310.0,0.36088826]
[1748880977293,0.01996105,104320.0,104310.0,0.36088826]
[1748880977528,0.002,104320.0,104310.0,0.36088826]
[1748880978492,0.01996105,104320.0,104310.0,0.36088826]
[1748880978725,0.002,104320.0,104310.0,0.36088826]
[1748880978942,0.01996106,104320.0,104310.0,0.36088826]
[1748880979160,0.002,104320.0,104310.0,0.36088826]
[1748880980037,0.01996107,104320.0,104310.0,0.36088826]
[1748880980254,0.002,104320.0,104310.0,0.36088826]
[1748880981013,0.02875876,104310.0,104300.0,0.30956982]
[1748880981231,0.04513298,104310.0,104300.0,0.34384462]
[1748880981450,0.02596084,104310.0,104300.0,0.34384462]
[1748880981661,0.0211703,104320.0,104310.0,0.22049548]
[1748880981875,0.03934143,104320.0,104310.0,0.22049548]
[1748880982330,0.04792722,104320.0,104310.0,0.22049548]
[1748880982551,0.02875573,104320.0,104310.0,0.22049548]
[1748880982757,0.03834134,104320.0,104310.0,0.22049548]
[1748880982977,0.02875573,104320.0,104310.0,0.23569548]